bitfinex-derivatives/quotes_ETHF0:USTF0_20250106
["timestamp","ask_amount","ask_price","bid_price","bid_amount"]
[1736127644574,3.72221954,3626.4,3626.3,1.25251627]
[1736127645875,0.4704,3626.4,3626.3,1.25251627]
[1736127653682,3.73971954,3626.5,3626.4,0.24824]
[1736127654183,3.73971954,3626.5,3626.4,0.73414]
[1736127654779,3.25181954,3626.5,3626.4,0.73414]
[1736127656285,3.2078,3626.6,3626.5,0.24823]
[1736127656485,3.2078,3626.6,3626.5,1.75930627]
[1736127657184,2.16558256,3626.9,3626.8,0.24821]
[1736127657384,2.16558256,3626.9,3626.8,1.25248627]
[1736127658280,2.16558256,3626.9,3626.8,2.34948627]
[1736127658486,2.16558256,3626.9,3626.8,2.81188627]
[1736127658886,2.16558256,3627.1,3626.8,1.5594]
[1736127659185,2.16558256,3627.1,3627.0,1.00427627]
[1736127660680,2.16558256,3627.1,3627.0,1.25247627]
[1736127661876,3.16985883,3627.1,3626.7,0.24821]
[1736127662182,3.9234,3627.0,3626.6,7.50571468]
[1736127662381,0.24821,3626.9,3626.6,7.50571468]
[1736127662580,0.24821,3626.9,3626.8,1.00427627]
[1736127662884,3.6752,3627.0,3626.8,1.00427627]
[1736127662885,3.9234,3627.0,3626.8,1.00427627]
[1736127663481,3.6752,3627.0,3626.9,0.2482]
[1736127663675,6.45961954,3627.0,3626.9,0.2482]
[1736127663883,6.45961954,3627.0,3626.9,0.7412]
[1736127664086,3.25181954,3627.0,3626.9,0.7412]
[1736127664488,3.25181954,3627.0,3626.9,1.74547627]
[1736127665091,4.33575939,3627.2,3626.9,1.74547627]
[1736127665092,2.1649574,3627.2,3626.9,0.7412]
[1736127665591,2.1649574,3627.2,3626.9,0.493]
[1736127665792,3.456,3627.0,3626.6,0.24822]
[1736127665993,3.456,3627.0,3626.5,3.7146]
[1736127665994,3.456,3627.0,3626.5,4.42973]
[1736127666193,3.456,3627.0,3626.6,0.24822]
[1736127666595,2.1649574,3626.9,3626.6,0.24822]
[1736127667796,0.4924,3626.8,3626.6,0.24822]
[1736127667997,0.4778,3626.7,3626.5,4.1815]
[1736127668302,0.4778,3626.7,3626.4,0.24824]
[1736127668491,3.2078,3626.6,3626.4,0.24824]
[1736127669196,3.2078,3626.6,3626.3,1.34524]
[1736127669497,5.3727574,3626.6,3626.3,1.34524]
[1736127670097,5.3727574,3626.6,3626.3,1.097]
[1736127670292,5.3727574,3626.6,3626.4,0.24824]
[1736127670795,3.2078,3626.6,3626.4,0.24824]
[1736127671391,3.2078,3626.6,3626.4,2.4724143]
[1736127672193,3.2078,3626.6,3626.4,2.2241743]
[1736127672495,3.2078,3626.6,3626.4,2.4724043]
[1736127672892,5.3727574,3626.6,3626.4,2.4724043]
[1736127673998,5.3727574,3626.6,3626.5,0.24823]
[1736127674194,3.2078,3626.6,3626.5,0.24823]
[1736127675100,2.6427574,3626.7,3626.4,2.2241743]
[1736127675298,2.6427574,3626.7,3626.5,0.24823]
[1736127675801,0.4859,3626.6,3626.5,0.24823]
[1736127676904,2.1649574,3626.7,3626.6,0.24822]
[1736127687110,2.1649574,3626.7,3626.6,1.25197961]
[1736127688614,2.1649574,3626.8,3626.7,0.24822]
[1736127688807,2.1649574,3626.8,3626.7,0.74652]
[1736127689002,2.1649574,3626.8,3626.7,1.24232]
[1736127690910,2.1649574,3626.8,3626.7,0.24822]
[1736127691213,2.1649574,3626.8,3626.7,1.25197961]
[1736127691512,2.1649574,3626.8,3626.3,7.59843841]
[1736127691704,2.4131674,3626.8,3626.6,1.00375961]
[1736127692007,0.4808,3626.7,3626.6,1.00375961]
[1736127692209,0.4808,3626.7,3626.6,1.25197961]
[1736127692602,3.73261954,3626.7,3626.6,1.25197961]
[1736127693710,0.4808,3626.7,3626.6,1.25197961]
[1736127695309,0.4808,3626.7,3626.0,7.50519802]
[1736127695613,4.45979961,3626.3,3626.0,7.75345802]
[1736127695810,4.45979961,3626.3,3626.0,1.00375961]
[1736127695811,1.4631,3626.2,3626.0,1.00375961]
[1736127696812,1.4631,3626.2,3626.0,1.25201961]
[1736127697013,1.4631,3626.2,3626.1,0.24826]
[1736127697207,0.9622,3626.2,3626.1,0.24826]
[1736127697809,0.9622,3626.2,3626.0,0.24826]
[1736127698115,1.21045,3626.2,3625.9,2.22529946]
[1736127698407,0.488,3626.1,3625.8,0.24827]
[1736127699710,2.16771108,3625.9,3625.8,0.24827]
[1736127702510,2.16771108,3626.0,3625.8,0.24827]
[1736127703311,2.16771108,3626.0,3625.8,0.24828]
[1736127703510,2.16771108,3626.0,3625.6,2.22529946]
[1736127703718,2.41598108,3626.0,3625.6,2.22529946]
[1736127704019,2.41598108,3626.0,3625.6,2.47358946]
[1736127704408,2.16771108,3626.0,3625.6,2.47358946]
[1736127705418,2.16771108,3625.9,3625.6,2.47358946]
[1736127705616,2.16771108,3625.9,3625.6,2.22529946]
[1736127705826,0.4828,3625.8,3625.7,0.24828]
[1736127718929,2.16771108,3626.0,3625.9,0.24827]
[1736127720620,2.16771108,3626.0,3625.9,1.25247892]
[1736127721130,3.25165163,3626.2,3626.1,0.24826]
[1736127721424,3.25165163,3626.2,3626.1,2.34846892]
[1736127721632,3.25165163,3626.3,3626.2,0.24825]
[1736127721832,3.25165163,3626.3,3626.2,1.22365]
[1736127722921,0.4963,3626.6,3626.5,0.24823]
[1736127723131,0.4963,3626.6,3626.5,1.25243892]
[1736127723324,0.4963,3626.6,3625.9,6.50143841]
[1736127723527,0.74452,3626.6,3626.2,0.24825]
[1736127723823,0.4963,3626.6,3626.5,1.00420892]
[1736127724228,0.4963,3626.6,3626.5,1.25243892]
[1736127735242,6.45945163,3626.7,3626.6,0.24822]
[1736127735537,3.25165163,3626.9,3626.8,0.24821]
[1736127737140,3.25165163,3626.9,3626.8,2.47172204]
[1736127737340,3.2078,3627.3,3627.2,0.24818]
[1736127742238,1.412,3627.4,3627.3,0.24818]
[1736127742938,1.412,3627.4,3627.3,0.73248]
[1736127744137,3.2078,3627.6,3627.3,0.4843]
[1736127744339,1.4232,3627.9,3627.5,2.22351204]
[1736127744537,6.45945163,3628.0,3627.9,2.47164204]
[1736127744742,6.45945163,3628.0,3627.9,3.56664204]
[1736127744943,3.2078,3628.0,3627.9,3.56664204]
[1736127751046,3.2078,3628.0,3627.9,1.34313]
[1736127751244,3.2078,3628.0,3627.9,3.56664204]
[1736127753149,3.2078,3628.4,3628.0,0.24813]
[1736127753350,3.2078,3628.4,3628.3,2.47162204]
[1736127754850,0.4814,3628.8,3628.5,0.24809]
[1736127755044,0.4814,3628.8,3628.7,2.47159204]
[1736127755942,0.4814,3628.8,3628.7,2.97509204]
[1736127771064,0.4814,3628.8,3628.7,1.75420662]
[1736127777865,0.4794,3628.9,3628.8,0.24807]
[1736127778066,0.9519,3628.9,3628.8,0.24807]
[1736127788673,0.9519,3628.9,3628.8,1.25069662]
[1736127792081,3.25165163,3629.2,3629.1,0.24805]
[1736127792281,3.25165163,3629.2,3629.1,1.25067662]
[1736127793583,0.504,3629.3,3629.2,0.24805]
[1736127794083,0.504,3629.3,3629.2,0.72195]
[1736127794684,0.504,3629.3,3629.2,5.04081993]
[1736127797083,0.504,3629.3,3629.2,4.56691993]
[1736127797783,0.504,3629.3,3629.2,5.66091993]
[1736127798189,0.504,3629.3,3629.2,6.66354655]
[1736127799087,0.504,3629.3,3629.2,2.34467662]
[1736127807792,0.504,3629.3,3629.1,4.31886993]
[1736127808094,0.504,3629.3,3629.2,1.00262662]
[1736127810199,0.504,3629.3,3629.2,1.25067662]
[1736127812598,0.504,3629.3,3629.2,0.24805]
[1736127812795,3.75359946,3629.3,3629.2,1.25067662]
[1736127821195,3.75359946,3629.3,3629.2,1.00262662]
[1736127821400,3.75359946,3629.3,3629.2,1.25067662]
[1736127822301,0.504,3629.3,3629.2,1.25067662]
[1736127823798,0.504,3629.3,3629.2,1.00262662]
[1736127824903,0.504,3629.3,3629.2,1.25067662]
[1736127825699,0.504,3629.3,3629.2,1.00262662]
[1736127825999,0.504,3629.3,3629.2,1.25067662]
[1736127826605,4.83975939,3629.3,3629.2,1.25067662]
[1736127828102,0.504,3629.3,3629.2,1.25067662]
[1736127829000,3.2078,3629.4,3629.3,0.24804]
[1736127832008,6.45915193,3629.4,3629.3,0.24804]
[1736127833406,3.25135193,3629.4,3629.3,0.24804]
[1736127835005,5.81605939,3629.6,3629.5,0.24803]
[1736127835309,5.81605939,3629.6,3629.5,1.25065662]
[1736127836004,1.4803,3629.6,3629.5,1.25065662]
[1736127838409,8.59512152,3629.7,3629.5,1.00262662]
[1736127838610,8.59512152,3629.7,3629.6,0.24802]
[1736127838809,8.59512152,3629.7,3629.6,0.74742]
[1736127839308,7.54416696,3629.7,3629.6,0.74742]
[1736127843416,3.2078,3629.7,3629.6,0.74742]
[1736127843816,3.7151,3629.7,3629.6,0.74742]
[1736127844518,3.7151,3629.7,3629.6,0.24802]
[1736127844719,3.96312,3629.7,3629.6,1.00262662]
[1736127846522,9.35044152,3629.7,3629.6,1.00262662]
[1736127847723,9.10242152,3629.7,3629.2,4.31886993]
[1736127847922,9.10242152,3629.7,3629.2,5.65990993]
[1736127847923,0.24803,3629.4,3629.2,5.65990993]
[1736127848222,0.24803,3629.5,3629.3,0.24804]
[1736127848619,4.58434146,3629.5,3629.3,0.24804]
[1736127849019,4.58434146,3629.5,3629.2,4.56690993]
[1736127849020,0.24803,3629.4,3629.2,4.56690993]
[1736127849218,0.24803,3629.4,3629.3,1.00262662]
[1736127849410,3.45583,3629.4,3629.3,1.00262662]
[1736127849617,7.79214146,3629.4,3629.3,1.00262662]
[1736127850822,3.45583,3629.4,3629.3,1.00262662]
[1736127854429,8.87497056,3629.4,3629.3,1.00262662]
[1736127858626,8.62694056,3629.4,3629.3,1.00262662]
[1736127858822,8.62694056,3629.4,3629.3,1.25066662]
[1736127859431,7.5418133,3629.4,3629.3,1.25066662]
[1736127861233,3.2078,3629.4,3629.3,1.25066662]
[1736127861831,3.45583,3629.4,3629.3,1.00262662]
[1736127862633,3.2078,3629.4,3629.3,1.00262662]
[1736127862835,3.2078,3629.4,3629.3,1.25066662]
[1736127865838,3.2078,3629.4,3629.3,0.24804]
[1736127865839,3.7038,3629.4,3629.3,0.24804]
[1736127866038,3.7038,3629.4,3629.3,1.25066662]
[1736127867635,3.95183,3629.4,3629.3,1.00262662]
[1736127868637,0.74403,3629.4,3629.3,1.00262662]
[1736127869542,0.496,3629.4,3629.0,0.72716]
[1736127869834,0.24805,3629.2,3629.1,1.00262662]
[1736127870738,1.00262662,3629.2,3628.8,4.31886993]
[1736127870940,3.45587,3628.9,3628.8,4.31886993]
[1736127871339,0.24807,3628.8,3628.7,1.00262662]
[1736127872537,5.66721056,3628.8,3628.7,1.00262662]
[1736127873742,0.24807,3628.8,3628.7,1.00262662]
[1736127875846,9.13074056,3628.9,3628.3,0.24811]
[1736127876039,0.24808,3628.7,3628.6,1.00262662]
[1736127880045,4.32900131,3628.8,3628.4,1.00262662]
[1736127880345,0.24809,3628.5,3628.4,1.00262662]
[1736127881353,2.41099038,3628.5,3628.4,1.00262662]
[1736127882049,2.16290038,3628.5,3628.4,1.00262662]
[1736127882743,2.16290038,3628.5,3628.4,1.25072662]
[1736127883649,2.16290038,3628.6,3628.4,1.25072662]
[1736127883857,2.16290038,3628.6,3628.5,1.00262662]
[1736127886055,2.16290038,3628.6,3628.5,1.25071662]
[1736127886356,2.16290038,3628.6,3628.5,1.00262662]
[1736127886954,0.24808,3628.7,3628.5,1.00262662]
[1736127886955,2.41098038,3628.7,3628.5,1.00262662]
[1736127887352,2.16290038,3628.7,3628.5,1.00262662]
[1736127887555,2.41098038,3628.7,3628.5,1.25071662]
[1736127889256,2.16290038,3628.7,3628.5,1.00262662]
[1736127889850,0.24809,3628.6,3628.5,1.00262662]
[1736127891063,2.41099038,3628.6,3628.5,1.00262662]
[1736127891565,2.16290038,3628.6,3628.5,1.00262662]
[1736127893565,2.41099038,3628.6,3628.5,1.00262662]
[1736127894659,2.16290038,3628.6,3628.5,1.00262662]
[1736127895165,2.41099038,3628.6,3628.5,1.00262662]
[1736127896559,0.24809,3628.6,3628.5,1.00262662]
[1736127900669,3.24435057,3628.7,3628.5,1.00262662]
[1736127900670,3.49243057,3628.7,3628.5,1.00262662]
[1736127900967,0.24809,3628.6,3628.5,1.00262662]
[1736127901362,3.49243057,3628.7,3628.5,1.00262662]
[1736127901562,3.24435057,3628.7,3628.5,1.25071662]
[1736127901761,2.16402946,3628.6,3628.5,1.25071662]
[1736127902760,3.24435057,3628.7,3628.5,5.32149655]
[1736127902969,2.16402946,3629.1,3628.5,5.32149655]
[1736127903165,2.16402946,3629.1,3629.0,1.25068662]
[1736127903568,2.16402946,3629.1,3629.0,2.34268662]
[1736127904269,2.16402946,3629.2,3629.1,0.24805]
[1736127904469,2.16402946,3629.2,3629.1,2.27017662]
[1736127904766,2.16402946,3629.2,3629.1,2.74987662]
[1736127905765,5.37182946,3629.3,3629.2,0.24805]
[1736127908770,5.37182946,3629.3,3629.1,2.74987662]
[1736127908967,0.24805,3629.2,3629.1,1.00262662]
[1736127910072,5.61986946,3629.3,3629.1,1.00262662]
[1736127910473,5.61986946,3629.3,3629.2,0.4824]
[1736127910676,6.70019057,3629.3,3629.2,0.4824]
[1736127912074,6.70019057,3629.3,3629.1,1.00262662]
[1736127912271,1.49692662,3629.2,3628.5,4.31886993]
[1736127912478,3.2078,3628.7,3628.5,5.04935993]
[1736127912771,0.4932,3628.6,3628.5,5.04935993]
[1736127913579,0.4932,3628.6,3628.5,0.73049]
[1736127914575,0.4932,3628.6,3628.5,1.73311662]
[1736127914768,0.74129,3628.6,3628.5,1.00262662]
[1736127915172,0.4932,3628.6,3628.5,1.00262662]
[1736127915368,6.36219977,3628.7,3628.5,1.00262662]
[1736127915577,6.36219977,3628.7,3628.6,0.24809]
[1736127915977,6.36219977,3628.7,3628.6,0.72919]
[1736127915978,7.44195057,3628.7,3628.6,0.72919]
[1736127916279,7.44195057,3628.7,3628.5,1.00262662]
[1736127916576,7.69003057,3628.7,3628.5,1.00262662]
[1736127917278,6.61088805,3628.7,3628.5,1.00262662]
[1736127917781,2.16520805,3628.7,3628.6,0.24809]
[1736127917982,2.16520805,3628.7,3628.6,0.72919]
[1736127918187,3.24435057,3628.8,3628.7,0.24808]
[1736127918376,3.24435057,3628.8,3628.7,1.25070662]
[1736127919479,0.4932,3628.9,3628.7,1.00262662]
[1736127919480,3.24435057,3628.9,3628.7,1.00262662]
[1736127919674,3.24435057,3628.9,3628.8,0.24807]
[1736127919874,3.24435057,3628.9,3628.8,1.25069662]
[1736127920881,2.1649002,3629.2,3629.1,0.24805]
[1736127921078,2.1649002,3629.2,3629.1,1.33905]
[1736127921680,2.1649002,3629.2,3629.1,1.82815]
[1736127922280,2.1649002,3629.6,3629.5,0.24803]
[1736127922584,2.1649002,3629.6,3629.5,1.25065662]
[1736127924584,2.1649002,3629.7,3629.5,1.00262662]
[1736127924786,2.1649002,3629.7,3629.6,1.25064662]
[1736127925788,3.7221,3629.9,3629.6,1.00262662]
[1736127926084,3.7221,3629.9,3629.8,1.25062662]
[1736127926278,3.7221,3629.9,3629.8,2.34162662]
[1736127927487,3.7221,3629.9,3629.8,2.09362662]
[1736127928489,3.7221,3629.9,3629.8,2.34162662]
[1736127928787,3.7221,3629.9,3629.4,0.5041]
[1736127928788,3.7221,3629.9,3629.1,4.83736993]
[1736127928988,3.7221,3629.9,3629.6,1.00262662]
[1736127928989,0.9741,3629.8,3629.6,1.00262662]
[1736127929390,0.9741,3629.8,3629.6,1.25063662]
[1736127929589,0.9741,3629.8,3629.7,0.24801]
[1736127930487,0.9741,3629.8,3629.7,0.74271]
[1736127937288,0.5143,3629.9,3629.8,0.248]
[1736127937490,0.5143,3629.9,3629.8,1.25062662]
[1736127944491,0.5143,3629.9,3629.7,0.4947]
[1736127944686,0.9783,3629.8,3629.7,1.25063662]
[1736127945496,3.1432002,3629.8,3629.7,1.25063662]
[1736127946590,0.9783,3629.8,3629.7,1.25063662]
[1736127949695,4.1861,3629.8,3629.7,1.25063662]
[1736127950497,6.34925008,3629.8,3629.7,1.25063662]
[1736127951093,6.34925008,3629.8,3629.7,1.00262662]
[1736127951286,6.34925008,3629.8,3629.7,1.25063662]
[1736127952093,7.43045057,3629.8,3629.7,1.25063662]
[1736127952790,7.43045057,3629.8,3629.7,0.24801]
[1736127952986,7.43045057,3629.8,3629.7,1.25063662]
[1736127953596,0.24802,3629.6,3629.5,2.09362662]
[1736127953898,0.24803,3629.5,3629.4,0.4948]
[1736127954198,0.24803,3629.5,3629.3,1.00262662]
[1736127954199,0.76903,3629.5,3629.3,1.00262662]
[1736127954398,3.2078,3629.4,3629.3,1.00262662]
[1736127954793,3.2078,3629.4,3629.3,1.25066662]
[1736127958194,3.45583,3629.4,3628.9,4.81106993]
[1736127958400,3.45583,3629.4,3629.1,1.00262662]
[1736127958401,1.26884,3629.3,3629.1,1.00262662]
[1736127958794,1.0208,3629.3,3629.1,1.00262662]
[1736127959098,1.0208,3629.3,3629.1,1.25067662]
[1736127959596,2.16343288,3629.2,3629.1,1.25067662]
[1736127960589,3.18423288,3629.3,3629.2,0.24805]
[1736127961994,2.16343288,3629.3,3629.2,0.24805]
[1736127962800,2.16343288,3629.3,3629.2,1.23665]
[1736127964401,6.45215057,3629.4,3629.2,0.9886]
[1736127964601,6.45215057,3629.4,3629.3,1.25066662]
[1736127964797,6.45215057,3629.4,3629.3,1.74186662]
[1736127965907,0.521,3629.5,3629.4,0.24803]
[1736127966803,4.85000131,3629.5,3629.4,0.24803]
[1736127967603,0.521,3629.5,3629.4,0.24803]
[1736127968299,0.521,3629.5,3629.1,4.31886993]
[1736127968499,3.45585,3629.2,3629.1,4.31886993]
[1736127968805,3.45585,3629.2,3629.1,3.52616993]
[1736127969006,4.45847662,3629.2,3629.1,3.52616993]
[1736127970026,9.21042662,3629.2,3628.1,6.50143841]
[1736127970304,0.521,3629.5,3628.1,6.50143841]
[1736127970305,3.4559,3628.4,3628.3,1.00262662]
[1736127970606,3.2078,3628.4,3628.3,1.25073662]
[1736127971205,3.2078,3628.4,3628.3,1.00262662]
[1736127971397,3.2078,3628.4,3628.3,1.50382662]
[1736127971799,3.2078,3628.4,3628.3,1.75193662]
[1736127972508,5.37250161,3628.4,3628.3,1.75193662]
[1736127974808,3.2078,3628.4,3628.3,1.75193662]
[1736127978613,3.2078,3628.4,3628.3,1.00262662]
[1736127978908,3.4559,3628.4,3628.3,1.00262662]
[1736127979505,3.2078,3628.4,3628.3,1.00262662]
[1736127980112,3.4559,3628.4,3628.3,1.00262662]
[1736127981310,3.2078,3628.4,3628.3,1.00262662]
[1736127982009,3.2078,3628.4,3628.3,1.49222662]
[1736127982315,3.2078,3628.4,3628.3,1.74033662]
[1736127982512,3.2078,3628.4,3628.3,1.49222662]
[1736127983413,3.2078,3628.4,3628.3,1.74033662]
[1736127984611,3.2078,3628.4,3628.0,1.09]
[1736127984816,0.24811,3628.3,3628.1,0.24812]
[1736127985008,0.72591,3628.3,3628.1,0.24812]
[1736127985210,0.5036,3628.2,3628.1,0.24812]
[1736127985712,0.5036,3628.2,3628.0,1.09]
[1736127985919,0.75171,3628.2,3628.1,1.00262662]
[1736127986107,0.5036,3628.2,3627.7,0.5118]
[1736127986307,0.24815,3627.7,3627.5,0.4948]
[1736127986509,4.1992,3627.6,3627.5,0.4948]
[1736127986716,4.44736,3627.6,3627.5,0.4948]
[1736127987109,4.1992,3627.6,3627.5,0.4948]
[1736127987408,4.1992,3627.6,3627.4,0.24816]
[1736127987409,4.1992,3627.6,3627.3,0.4952]
[1736127987605,4.1992,3627.6,3627.5,1.00262662]
[1736127987606,4.44736,3627.6,3627.5,1.00262662]
[1736127988213,4.1992,3627.6,3627.3,0.4952]
[1736127988418,0.24817,3627.4,3627.3,0.4952]
[1736127989318,0.4836,3627.5,3627.3,0.74337]
[1736127989711,0.4836,3627.5,3627.3,0.4952]
[1736127990012,0.73176,3627.5,3627.4,1.00262662]
[1736127991117,4.1992,3627.6,3627.4,1.00262662]
[1736127991319,4.1992,3627.6,3627.5,0.24816]
[1736127991320,3.2078,3627.6,3627.5,0.24816]
[1736127993218,3.2078,3627.6,3627.4,1.48732662]
[1736127993413,3.2078,3627.6,3627.5,0.24816]
[1736127994314,3.2078,3627.6,3627.3,0.4952]
[1736127994517,0.5144,3627.5,3626.7,3.85646243]
[1736127994721,3.45599,3627.1,3626.9,0.519]
[1736127996516,3.2078,3627.1,3626.9,0.7672]
[1736127996815,3.2078,3627.1,3627.0,0.2482]
[1736127998118,3.2078,3627.1,3626.9,0.7672]
[1736127999920,3.2078,3627.1,3626.9,0.519]
[1736128000223,3.2078,3627.1,3626.9,0.7672]
[1736128001123,3.2078,3627.1,3626.8,2.75276793]
[1736128001416,0.24821,3626.9,3626.6,1.091]
[1736128001624,0.5103,3626.8,3626.6,1.091]
[1736128001819,0.9908,3626.8,3626.6,1.33922]
[1736128003213,3.2078,3626.7,3626.2,2.22436793]
[1736128003421,0.24823,3626.6,3626.3,0.24824]
[1736128004930,0.24824,3626.5,3626.2,2.47261793]
[1736128008317,3.6995,3626.7,3626.2,2.22436793]
[1736128008520,3.2078,3626.3,3626.1,0.24825]
[1736128008723,0.5089,3626.2,3626.0,1.25606]
[1736128008922,0.9959,3626.2,3626.0,1.25606]
[1736128009323,0.9959,3626.2,3626.1,0.24826]
[1736128009621,3.6995,3626.7,3626.2,0.24825]
[1736128009825,3.6995,3626.7,3626.0,1.0078]
[1736128009826,3.2078,3626.7,3626.6,2.47258793]
[1736128010031,2.16470161,3627.1,3626.6,2.22436793]
[1736128010324,2.16470161,3627.1,3627.0,0.2482]
[1736128010727,3.6948,3627.2,3627.1,0.24819]
[1736128017432,5.37250161,3627.6,3627.5,0.24816]
[1736128018133,5.37250161,3627.6,3627.5,1.27446]
[1736128018831,3.2078,3627.6,3627.5,1.27446]
[1736128020429,3.2078,3628.0,3627.5,1.0263]
[1736128020631,2.16470161,3628.1,3628.0,0.24813]
[1736128021132,2.68590161,3628.3,3628.2,0.24811]
[1736128022125,2.16470161,3628.3,3628.2,0.24811]
[1736128022633,2.16470161,3628.5,3628.4,0.2481]
[1736128022822,2.16470161,3628.5,3628.3,0.2481]
[1736128023029,2.16470161,3628.5,3627.9,2.22436793]
[1736128023228,2.41280161,3628.5,3628.1,0.24811]
[1736128024935,2.41280161,3628.5,3628.2,0.24811]
[1736128025131,2.16470161,3628.4,3628.2,0.24811]
[1736128026038,2.16470161,3628.4,3627.9,3.31536793]
[1736128026338,2.16470161,3628.4,3628.2,0.24811]
[1736128026526,2.16470161,3628.4,3628.3,2.47247793]
[1736128027637,3.2078,3628.6,3628.5,0.24809]
[1736128028138,3.2078,3628.6,3628.4,0.2481]
[1736128031847,3.2078,3628.6,3628.3,2.22436793]
[1736128032147,3.2078,3628.6,3628.5,0.24809]
[1736128032844,0.24809,3628.5,3628.2,0.24811]
[1736128033036,3.7159,3628.6,3628.1,1.21282]
[1736128033238,3.2078,3628.2,3628.0,0.24813]
[1736128033435,3.2078,3628.2,3627.7,3.81626793]
[1736128033642,3.45592,3628.2,3627.9,0.24813]
[1736128033843,3.2078,3628.2,3628.1,0.24812]
[1736128034444,3.2078,3628.2,3628.1,1.24962]
[1736128036437,3.45588,3628.7,3628.4,0.2481]
[1736128036845,3.2078,3628.7,3628.5,0.24809]
[1736128037558,3.2078,3628.7,3628.4,0.2481]
[1736128037559,3.45588,3628.7,3628.4,0.2481]
[1736128038153,3.45588,3628.7,3628.4,0.24809]
[1736128038451,3.2078,3628.7,3628.5,0.24809]
[1736128038644,3.2078,3628.7,3628.6,0.24809]
[1736128038844,3.2078,3628.7,3628.6,2.47245793]
[1736128040646,3.2078,3628.7,3628.6,2.96925793]
[1736128047655,0.9281,3629.2,3629.1,0.24805]
[1736128047850,3.2078,3629.3,3629.2,0.24805]
[1736128048954,3.2078,3629.3,3629.2,1.33805]
[1736128049955,3.6683,3629.8,3629.2,1.09]
[1736128050260,3.6683,3629.8,3629.7,0.24801]
[1736128050955,3.2078,3629.8,3629.7,0.24801]
[1736128051163,3.2078,3629.8,3629.7,1.16161]
[1736128053766,0.483,3630.2,3629.7,0.9136]
[1736128054062,0.483,3630.2,3630.0,0.24799]
[1736128054656,0.483,3630.2,3629.7,0.9136]
[1736128054863,0.483,3630.2,3629.9,0.24799]
[1736128055559,0.483,3630.2,3630.0,0.24799]
[1736128055962,0.483,3630.2,3629.7,0.9136]
[1736128056160,0.483,3630.2,3629.9,0.24799]
[1736128056356,0.73098,3630.2,3629.9,0.24799]
[1736128056562,0.483,3630.2,3629.9,0.24799]
[1736128059367,0.73098,3630.2,3629.9,0.24799]
[1736128059667,0.483,3630.2,3629.9,0.24799]
[1736128060377,0.483,3630.2,3629.7,0.9136]
[1736128060576,0.483,3630.2,3629.8,0.248]
[1736128060771,0.24799,3630.1,3629.8,0.248]
[1736128060971,0.483,3630.2,3629.7,0.9136]
[1736128061275,0.73098,3630.2,3629.9,0.24799]
[1736128061469,0.483,3630.2,3629.7,0.9136]
[1736128061772,0.483,3630.2,3630.0,0.24799]
[1736128062369,0.483,3630.2,3629.9,0.24799]
[1736128062574,0.483,3630.2,3629.7,0.9136]
[1736128062977,0.483,3630.2,3630.0,0.24799]
[1736128063277,0.73098,3630.2,3629.9,0.24799]
[1736128063473,0.483,3630.2,3630.0,0.24799]
[1736128063674,0.483,3630.2,3629.7,0.9136]
[1736128063878,0.483,3630.2,3629.9,0.24799]
[1736128064177,0.483,3630.2,3629.7,0.9136]
[1736128064178,0.483,3630.2,3630.0,0.24799]
[1736128065774,0.483,3630.2,3629.7,0.9136]
[1736128065975,0.73098,3630.2,3629.9,0.24799]
[1736128066377,0.73098,3630.2,3629.7,0.9136]
[1736128066579,0.73098,3630.2,3630.0,0.24799]
[1736128067783,0.483,3630.2,3630.0,0.24799]
[1736128069374,0.73098,3630.2,3629.9,0.24799]
[1736128069581,0.73098,3630.2,3630.0,0.24799]
[1736128069776,0.483,3630.2,3630.0,0.24799]
[1736128070477,0.73098,3630.2,3630.0,0.24799]
[1736128070676,0.483,3630.2,3630.0,0.24799]
[1736128071379,0.73098,3630.2,3630.0,0.24799]
[1736128072081,3.93878,3630.2,3630.0,0.24799]
[1736128072782,3.93878,3630.2,3629.7,2.0026]
[1736128073283,3.6908,3630.2,3629.7,2.0026]
[1736128073478,3.6908,3630.2,3630.0,0.24799]
[1736128074983,3.6908,3630.2,3630.0,1.25014463]
[1736128075574,3.93878,3630.2,3630.0,1.25014463]
[1736128075774,3.6908,3630.2,3630.0,1.25014463]
[1736128077984,3.6908,3630.2,3630.1,0.24798]
[1736128079181,0.248,3629.9,3629.7,0.24801]
[1736128079381,0.4774,3629.8,3629.7,1.25016463]
[1736128080685,4.94093463,3630.2,3630.0,0.24799]
[1736128080985,0.4739,3630.1,3630.0,0.24799]
[1736128081485,0.4739,3630.1,3629.9,1.00215463]
[1736128081879,0.4739,3630.1,3630.0,0.24799]
[1736128082386,0.4739,3630.1,3630.0,0.71529]
[1736128082981,0.4739,3630.1,3630.0,0.4673]
[1736128083279,0.4739,3630.1,3629.9,1.00215463]
[1736128083478,0.72189,3630.1,3629.9,1.00215463]
[1736128083684,0.4739,3630.1,3629.9,1.25015463]
[1736128083987,0.4739,3630.1,3630.0,0.24799]
[1736128084886,2.63860161,3630.1,3630.0,0.24799]
[1736128086580,0.4739,3630.1,3630.0,0.24799]
[1736128086979,3.6817,3630.1,3630.0,0.24799]
[1736128087180,3.6817,3630.1,3630.0,0.72449]
[1736128089092,6.92993285,3630.1,3630.0,0.72449]
[1736128090191,3.6817,3630.1,3630.0,0.72449]
[1736128092789,8.01267714,3630.1,3630.0,0.72449]
[1736128095390,9.09542143,3630.1,3630.0,0.72449]
[1736128095590,9.09542143,3630.1,3629.9,1.00215463]
[1736128095790,9.34340143,3630.1,3630.0,0.24799]
[1736128096193,0.248,3629.9,3629.7,4.79196657]
[1736128096394,0.248,3629.8,3629.7,4.31576657]
[1736128096594,0.248,3629.8,3629.6,7.75160304]
[1736128096897,0.9343,3629.7,3629.6,7.50359304]
[1736128097096,0.9343,3629.7,3629.6,7.75161304]
[1736128098190,5.27325579,3629.7,3629.6,6.2325509]
[1736128100497,5.27325579,3629.7,3629.6,10.56128987]
[1736128101601,5.27325579,3629.7,3629.6,5.5789136]
[1736128105600,0.9343,3629.7,3629.6,5.5789136]
[1736128110405,0.9343,3629.7,3629.6,4.32873897]
[1736128110616,1.18231,3629.7,3629.6,4.32873897]